fUSD/lending_fUSD_20260506
["ID","MTS","AMOUNT","RATE_DAILY","PERIOD"]
[421680519,1778040637000,-500.0,0.00013879,2]
[421680520,1778040637000,-500.0,0.00013879,2]
[421680517,1778040637000,-151.0,0.00013877,2]
[421680516,1778040637000,-275.63605625,0.0001387,2]
[421680514,1778040637000,-166.66,0.00013836,2]
[421680511,1778040637000,-7600.0,0.000138,5]
[421680512,1778040637000,-641.32900993,0.000138,2]
[421680510,1778040637000,-166.66,0.00013732,2]
[421680513,1778040637000,-153.12137068,0.00013811,2]
[421680509,1778040637000,-5700.0,0.000137,5]
[421680508,1778040637000,-200.0,0.00013699,2]
[421680507,1778040637000,-4867.06791489,0.00013699,2]
[421680515,1778040637000,-255.0,0.0001387,2]
[421680521,1778040637000,-500.0,0.00013879,2]
[421680522,1778040637000,-500.0,0.00013879,2]
[421680531,1778040637000,-500.0,0.00013879,2]
[421680529,1778040637000,-500.0,0.00013879,2]
[421680537,1778040637000,-500.0,0.00013879,2]
[421680536,1778040637000,-500.0,0.00013879,2]
[421680534,1778040637000,-500.0,0.00013879,2]
[421680526,1778040637000,-500.0,0.00013879,2]
[421680527,1778040637000,-500.0,0.00013879,2]
[421680535,1778040637000,-500.0,0.00013879,2]
[421680525,1778040637000,-500.0,0.00013879,2]
[421680524,1778040637000,-500.0,0.00013879,2]
[421680533,1778040637000,-500.0,0.00013879,2]
[421680532,1778040637000,-500.0,0.00013879,2]
[421680530,1778040637000,-500.0,0.00013879,2]
[421680523,1778040637000,-500.0,0.00013879,2]
[421680528,1778040637000,-500.0,0.00013879,2]
[421680590,1778040638000,-500.0,0.00013924,2]
[421680588,1778040638000,-9600.0,0.000139,5]
[421680593,1778040638000,-500.0,0.00013924,2]
[421680597,1778040638000,-500.0,0.00013924,2]
[421680580,1778040638000,-466.26981401,0.00013879,2]
[421680586,1778040638000,-990733.0097,0.0001388,2]
[421680584,1778040638000,-265.98556035,0.00013879,2]
[421680578,1778040638000,-500.0,0.00013879,2]
[421680576,1778040638000,-500.0,0.00013879,2]
[421680574,1778040638000,-500.0,0.00013879,2]
[421680595,1778040638000,-500.0,0.00013924,2]
[421680582,1778040638000,-500.0,0.00013879,2]
[421680599,1778040638000,-500.0,0.00013924,2]
[421680621,1778040638000,-166.66,0.0001411,2]
[421680605,1778040638000,-500.0,0.00013924,2]
[421680607,1778040638000,-359.02419726,0.00013924,2]
[421680603,1778040638000,-500.0,0.00013924,2]
[421680611,1778040638000,-166.66,0.00013973,2]
[421680609,1778040638000,-914.77,0.00013924,2]
[421680570,1778040638000,-914.77,0.00013879,2]
[421680613,1778040638000,-208.85,0.00013986,2]
[421680618,1778040638000,-250.0,0.00014,2]
[421680615,1778040638000,-34094.01730636,0.0001399,2]
[421680624,1778040638000,-1000.0,0.00014121,2]
[421680627,1778040638000,-1000.0,0.00014121,2]
[421680630,1778040638000,-157.77,0.00014142,2]
[421680633,1778040638000,-238.17435,0.00014143,2]
[421680647,1778040638000,-166.66,0.00014247,2]
[421680601,1778040638000,-632.75,0.00013924,2]
[421680572,1778040638000,-237.61231571,0.00013879,2]
[421680564,1778040638000,-500.0,0.00013879,2]
[421680566,1778040638000,-518.42529008,0.00013879,2]
[421680651,1778040638000,-487.01243,0.00014375,2]
[421680543,1778040638000,-500.0,0.00013879,2]
[421680538,1778040638000,-377.22125429,0.00013879,2]
[421680540,1778040638000,-500.0,0.00013879,2]
[421680541,1778040638000,-500.0,0.00013879,2]
[421680539,1778040638000,-500.0,0.00013879,2]
[421680542,1778040638000,-500.0,0.00013879,2]
[421680546,1778040638000,-632.75,0.00013879,2]
[421680544,1778040638000,-302.54889419,0.00013879,2]
[421680545,1778040638000,-632.75,0.00013879,2]
[421680547,1778040638000,-632.75,0.00013879,2]
[421680555,1778040638000,-500.0,0.00013879,2]
[421680556,1778040638000,-500.0,0.00013879,2]
[421680569,1778040638000,-914.77,0.00013879,2]
[421680558,1778040638000,-500.0,0.00013879,2]
[421680557,1778040638000,-500.0,0.00013879,2]
[421680559,1778040638000,-500.0,0.00013879,2]
[421680554,1778040638000,-500.0,0.00013879,2]
[421680550,1778040638000,-500.0,0.00013879,2]
[421680553,1778040638000,-500.0,0.00013879,2]
[421680551,1778040638000,-500.0,0.00013879,2]
[421680548,1778040638000,-632.75,0.00013879,2]
[421680552,1778040638000,-500.0,0.00013879,2]
[421680560,1778040638000,-500.0,0.00013879,2]
[421680561,1778040638000,-500.0,0.00013879,2]
[421680565,1778040638000,-500.0,0.00013879,2]
[421680567,1778040638000,-914.77,0.00013879,2]
[421680568,1778040638000,-914.77,0.00013879,2]
[421680549,1778040638000,-500.0,0.00013879,2]
[421680649,1778040638000,-2000.0,0.00014331,2]
[421680562,1778040638000,-500.0,0.00013879,2]
[421680655,1778040638000,-500.0,0.00014432,2]
[421680712,1778040638000,-500.0,0.00014432,2]
[421680729,1778040638000,-500.0,0.00014532,2]
[421680731,1778040638000,-551.68,0.00014532,2]
[421680716,1778040638000,-500.0,0.00014432,2]
[421680766,1778040638000,-500.0,0.00014899,2]
[421680718,1778040638000,-500.0,0.00014432,2]
[421680720,1778040638000,-500.0,0.00014432,2]
[421680714,1778040638000,-500.0,0.00014432,2]
[421680721,1778040638000,-500.0,0.00014432,2]
[421680733,1778040638000,-500.0,0.00014532,2]
[421680735,1778040638000,-1600.0,0.000146,2]
[421680737,1778040638000,-166.66,0.00014609,2]
[421680738,1778040638000,-2000.0,0.00014625,2]
[421680727,1778040638000,-500.0,0.00014532,2]
[421680742,1778040638000,-300.0,0.00014668,2]
[421680744,1778040638000,-300.0,0.00014668,2]
[421680746,1778040638000,-300.0,0.00014668,2]
[421680748,1778040638000,-300.0,0.00014668,2]
[421680755,1778040638000,-625.44779585,0.00014768,2]
[421680750,1778040638000,-1500.0,0.00014668,2]
[421680752,1778040638000,-420.0,0.00014725,2]
[421680753,1778040638000,-772.99778324,0.00014768,2]
[421680758,1778040638000,-1680.0,0.00014776,2]
[421680757,1778040638000,-1002.76984421,0.00014768,2]
[421680762,1778040638000,-157.77,0.00014849,2]
[421680764,1778040638000,-500.0,0.00014899,2]
[421680768,1778040638000,-500.0,0.00014899,2]
[421680638,1778040638000,-204.33,0.000142,2]
[421680741,1778040638000,-300.0,0.00014668,2]
[421680725,1778040638000,-500.0,0.00014532,2]
[421680760,1778040638000,-1365718.1514363,0.000148,2]
[421680710,1778040638000,-500.0,0.00014432,2]
[421680723,1778040638000,-160.80309549,0.00014432,2]
[421680636,1778040638000,-166.66,0.0001417,2]
[421680653,1778040638000,-166.66,0.00014384,2]
[421680641,1778040638000,-1000.0,0.00014221,2]
[421680645,1778040638000,-1000.0,0.00014221,2]
[421680660,1778040638000,-500.0,0.00014432,2]
[421680658,1778040638000,-500.0,0.00014432,2]
[421680666,1778040638000,-500.0,0.00014432,2]
[421680664,1778040638000,-500.0,0.00014432,2]
[421680670,1778040638000,-500.0,0.00014432,2]
[421680668,1778040638000,-500.0,0.00014432,2]
[421680673,1778040638000,-500.0,0.00014432,2]
[421680662,1778040638000,-500.0,0.00014432,2]
[421680675,1778040638000,-500.0,0.00014432,2]
[421680643,1778040638000,-1000.0,0.00014221,2]
[421680680,1778040638000,-500.0,0.00014432,2]
[421680708,1778040638000,-500.0,0.00014432,2]
[421680682,1778040638000,-500.0,0.00014432,2]
[421680706,1778040638000,-551.68,0.00014432,2]
[421680700,1778040638000,-551.68,0.00014432,2]
[421680697,1778040638000,-551.68,0.00014432,2]
[421680695,1778040638000,-551.68,0.00014432,2]
[421680702,1778040638000,-551.68,0.00014432,2]
[421680704,1778040638000,-551.68,0.00014432,2]
[421680691,1778040638000,-500.0,0.00014432,2]
[421680689,1778040638000,-500.0,0.00014432,2]
[421680686,1778040638000,-500.0,0.00014432,2]
[421680677,1778040638000,-500.0,0.00014432,2]
[421680684,1778040638000,-500.0,0.00014432,2]
[421680693,1778040638000,-500.0,0.00014432,2]
[421680833,1778040639000,-500.0,0.00014899,2]
[421680831,1778040639000,-500.0,0.00014899,2]
[421680826,1778040639000,-551.68,0.00014899,2]
[421680834,1778040639000,-559.40184847,0.00014899,2]
[421680820,1778040639000,-551.68,0.00014899,2]
[421680818,1778040639000,-551.68,0.00014899,2]
[421680828,1778040639000,-500.0,0.00014899,2]
[421680824,1778040639000,-551.68,0.00014899,2]
[421680822,1778040639000,-551.68,0.00014899,2]
[421680860,1778040639000,-166.66,0.00015048,2]
[421680870,1778040639000,-452.05255222,0.00015299,2]
[421680858,1778040639000,-565.44,0.00014946,2]
[421680874,1778040639000,-157.77,0.00015556,2]
[421680880,1778040639000,-377.29903517,0.0001596,2]
[421680884,1778040639000,-349.19358166,0.00016,2]
[421680868,1778040639000,-1006.15979396,0.00015216,2]
[421680878,1778040639000,-15233.0097644,0.0001569,2]
[421680866,1778040639000,-150.0,0.00015068,2]
[421680829,1778040639000,-500.0,0.00014899,2]
[421680876,1778040639000,-300.0,0.00015616,2]
[421680862,1778040639000,-433.0,0.00015058,2]
[421680815,1778040639000,-551.68,0.00014899,2]
[421680780,1778040639000,-500.0,0.00014899,2]
[421680810,1778040639000,-551.68,0.00014899,2]
[421680882,1778040639000,-300.0,0.00016,2]
[421680772,1778040639000,-500.0,0.00014899,2]
[421680774,1778040639000,-500.0,0.00014899,2]
[421680770,1778040639000,-500.0,0.00014899,2]
[421680776,1778040639000,-500.0,0.00014899,2]
[421680784,1778040639000,-500.0,0.00014899,2]
[421680778,1778040639000,-500.0,0.00014899,2]
[421680782,1778040639000,-500.0,0.00014899,2]
[421680786,1778040639000,-500.0,0.00014899,2]
[421680788,1778040639000,-500.0,0.00014899,2]
[421680790,1778040639000,-500.0,0.00014899,2]
[421680796,1778040639000,-500.0,0.00014899,2]
[421680798,1778040639000,-500.0,0.00014899,2]
[421680794,1778040639000,-500.0,0.00014899,2]
[421680802,1778040639000,-500.0,0.00014899,2]
[421680812,1778040639000,-551.68,0.00014899,2]
[421680792,1778040639000,-500.0,0.00014899,2]
[421680806,1778040639000,-505.03766025,0.00014899,2]
[421680808,1778040639000,-551.68,0.00014899,2]
[421680804,1778040639000,-500.0,0.00014899,2]
[421680800,1778040639000,-500.0,0.00014899,2]
[421680817,1778040639000,-551.68,0.00014899,2]
[421680864,1778040639000,-900.0,0.00015068,2]
[421680872,1778040639000,-166.66,0.00015487,2]
[421680980,1778040639000,-1500.0,0.00017534,2]
[421680953,1778040639000,-1471.45,0.00016844,2]
[421680949,1778040639000,-626.158834,0.0001666,2]
[421680967,1778040639000,-1000.0,0.00016986,2]
[421680960,1778040639000,-1000.0,0.00016986,2]
[421680964,1778040639000,-1000.0,0.00016986,2]
[421680963,1778040639000,-931.73147682,0.00016986,2]
[421680971,1778040639000,-1000.0,0.00016986,2]
[421680958,1778040639000,-1000.0,0.00016986,2]
[421680947,1778040639000,-565.44,0.0001644,2]
[421680957,1778040639000,-726.02807004,0.00016986,2]
[421680972,1778040639000,-1000.0,0.00016986,2]
[421680973,1778040639000,-396.95725,0.00017184,2]
[421680978,1778040639000,-1500.0,0.00017534,2]
[421680975,1778040639000,-1500.0,0.00017534,2]
[421680992,1778040639000,-823.0,0.00017694,2]
[421680982,1778040639000,-877.91782746,0.00017534,2]
[421680986,1778040639000,-1500.0,0.00017534,2]
[421680984,1778040639000,-501.54617284,0.00017534,2]
[421680988,1778040639000,-1500.0,0.00017534,2]
[421680990,1778040639000,-157.77,0.00017677,2]
[421680889,1778040639000,-9999.99,0.00016116,2]
[421680954,1778040639000,-157.77,0.0001697,2]
[421680950,1778040639000,-199.38,0.00016712,2]
[421680969,1778040639000,-1000.0,0.00016986,2]
[421680945,1778040639000,-500.0,0.00016438,2]
[421680886,1778040639000,-349.19358166,0.000161,2]
[421680893,1778040639000,-349.19358166,0.000162,2]
[421680895,1778040639000,-1600.0,0.00016222,2]
[421680897,1778040639000,-2000.0,0.0001625,2]
[421680908,1778040639000,-827.91,0.00016438,5]
[421680943,1778040639000,-492.59344334,0.00016438,2]
[421680891,1778040639000,-587.0,0.00016141,2]
[421680906,1778040639000,-1965.0,0.00016438,2]
[421680903,1778040639000,-736.0,0.00016361,2]
[421680901,1778040639000,-157.77,0.00016263,2]
[421680915,1778040639000,-500.0,0.00016438,2]
[421680899,1778040639000,-2351.0,0.00016254,2]
[421680913,1778040639000,-900.0,0.00016438,2]
[421680940,1778040639000,-500.0,0.00016438,2]
[421680911,1778040639000,-500.0,0.00016438,2]
[421680922,1778040639000,-500.0,0.00016438,2]
[421680930,1778040639000,-500.0,0.00016438,2]
[421680924,1778040639000,-229.62,0.00016438,2]
[421680995,1778040639000,-1252.0,0.00017766,2]
[421680926,1778040639000,-500.0,0.00016438,2]
[421680919,1778040639000,-500.0,0.00016438,2]
[421680917,1778040639000,-500.0,0.00016438,2]
[421680928,1778040639000,-309.24927612,0.00016438,2]
[421681093,1778040640000,-151.0,0.00018461,2]
[421681088,1778040640000,-151.0,0.00018461,2]
[421681086,1778040640000,-151.0,0.00018461,2]
[421681091,1778040640000,-151.0,0.00018461,2]
[421681090,1778040640000,-151.0,0.00018461,2]
[421681068,1778040640000,-151.0,0.00018461,2]
[421681081,1778040640000,-151.0,0.00018461,2]
[421681079,1778040640000,-151.0,0.00018461,2]
[421681078,1778040640000,-151.0,0.00018461,2]
[421681076,1778040640000,-151.0,0.00018461,2]
[421681070,1778040640000,-151.0,0.00018461,2]
[421681072,1778040640000,-151.0,0.00018461,2]
[421681083,1778040640000,-151.0,0.00018461,2]
[421681074,1778040640000,-151.0,0.00018461,2]
[421681121,1778040640000,-500.0,0.00019178,2]
[421681095,1778040640000,-151.0,0.00018461,2]
[421681099,1778040640000,-2500.0,0.0001863,2]
[421681112,1778040640000,-3000.0,0.00019178,2]
[421681114,1778040640000,-500.0,0.00019178,2]
[421681120,1778040640000,-500.0,0.00019178,2]
[421681116,1778040640000,-500.0,0.00019178,2]
[421681118,1778040640000,-500.0,0.00019178,2]
[421681108,1778040640000,-493.08830737,0.00018758,2]
[421681103,1778040640000,-20858.45,0.0001872,2]
[421681106,1778040640000,-439.39,0.0001872,2]
[421681101,1778040640000,-2500.0,0.0001863,2]
[421681110,1778040640000,-157.77,0.00019091,2]
[421681125,1778040640000,-500.0,0.00019178,2]
[421681066,1778040640000,-151.0,0.00018461,2]
[421681097,1778040640000,-151.0,0.00018461,2]
[421681056,1778040640000,-157.77,0.00018384,2]
[421681006,1778040640000,-565.44,0.00017935,2]
[421681050,1778040640000,-551.68,0.00018358,2]
[421680997,1778040640000,-1600.0,0.00017844,2]
[421681008,1778040640000,-350.0,0.00018,2]
[421681010,1778040640000,-1851.4121579,0.00018082,2]
[421681012,1778040640000,-961.74205325,0.00018082,2]
[421681014,1778040640000,-509.95591116,0.00018082,2]
[421681004,1778040640000,-15233.0097644,0.00017879,2]
[421681002,1778040640000,-3292.0,0.00017879,2]
[421680999,1778040640000,-2000.0,0.00017876,2]
[421681016,1778040640000,-2000.0,0.00018082,2]
[421681020,1778040640000,-1747.64701049,0.00018336,2]
[421681018,1778040640000,-2000.0,0.00018082,2]
[421681032,1778040640000,-89398.23,0.00018356,2]
[421681035,1778040640000,-500.0,0.00018358,2]
[421681022,1778040640000,-500.0,0.00018355,2]
[421681026,1778040640000,-207.86895535,0.00018356,2]
[421681024,1778040640000,-551.68,0.00018355,2]
[421681028,1778040640000,-160.0,0.00018356,2]
[421681030,1778040640000,-162.55277151,0.00018356,2]
[421681044,1778040640000,-551.68,0.00018358,2]
[421681041,1778040640000,-171.41074173,0.00018358,2]
[421681037,1778040640000,-500.0,0.00018358,2]
[421681039,1778040640000,-500.0,0.00018358,2]
[421681058,1778040640000,-1965.0,0.0001841,2]
[421681048,1778040640000,-551.68,0.00018358,2]
[421681060,1778040640000,-151.0,0.00018461,2]
[421681064,1778040640000,-151.0,0.00018461,2]
[421681046,1778040640000,-551.68,0.00018358,2]
[421681062,1778040640000,-151.0,0.00018461,2]
[421681054,1778040640000,-551.78631548,0.00018358,2]
[421681052,1778040640000,-551.68,0.00018358,2]
[421681124,1778040640000,-500.0,0.00019178,2]
[421681213,1778040640000,-2839.316098,0.0002003,2]
[421681129,1778040640000,-500.0,0.00019178,2]
[421681206,1778040640000,-500.0,0.00020019,2]
[421681194,1778040640000,-500.0,0.00020019,2]
[421681196,1778040640000,-500.0,0.00020019,2]
[421681198,1778040640000,-515.79571264,0.00020019,2]
[421681204,1778040640000,-500.0,0.00020019,2]
[421681208,1778040640000,-914.77,0.00020019,2]
[421681222,1778040640000,-156.90090257,0.00020384,2]
[421681223,1778040640000,-21766.67,0.00020548,2]
[421681210,1778040640000,-2027.761435,0.0002002,2]
[421681228,1778040640000,-466.0,0.00021,2]
[421681226,1778040640000,-2064.0,0.00020959,2]
[421681230,1778040640000,-362.0,0.00021,2]
[421681216,1778040640000,-15233.0097644,0.00020069,2]
[421681217,1778040640000,-181.84407951,0.00020075,2]
[421681220,1778040640000,-1965.0,0.00020381,2]
[421681212,1778040640000,-2000.0,0.0002002,2]
[421681232,1778040640000,-177.0,0.00021,2]
[421681234,1778040640000,-277.0,0.00021,2]
[421681250,1778040640000,-6453.0,0.00021634,2]
[421681251,1778040640000,-755.66033016,0.00021702,2]
[421681247,1778040640000,-333.72,0.00021273,2]
[421681248,1778040640000,-2138.58,0.00021273,2]
[421681252,1778040640000,-750.0,0.00021821,2]
[421681249,1778040640000,-156.90090257,0.00021417,2]
[421681238,1778040640000,-1073.0,0.00021,2]
[421681236,1778040640000,-359.0,0.00021,2]
[421681242,1778040640000,-483.0,0.00021,2]
[421681244,1778040640000,-500.0,0.00021155,2]
[421681127,1778040640000,-500.0,0.00019178,2]
[421681200,1778040640000,-632.75,0.00020019,2]
[421681184,1778040640000,-347.0,0.0002,2]
[421681240,1778040640000,-347.0,0.00021,2]
[421681192,1778040640000,-500.0,0.00020019,2]
[421681202,1778040640000,-500.0,0.00020019,2]
[421681133,1778040640000,-500.0,0.00019178,2]
[421681131,1778040640000,-500.0,0.00019178,2]
[421681135,1778040640000,-500.0,0.00019178,2]
[421681144,1778040640000,-500.0,0.00019178,2]
[421681149,1778040640000,-1503.70297435,0.00019178,2]
[421681145,1778040640000,-500.0,0.00019178,2]
[421681148,1778040640000,-359.48712633,0.00019178,2]
[421681142,1778040640000,-500.0,0.00019178,2]
[421681139,1778040640000,-500.0,0.00019178,2]
[421681153,1778040640000,-973.0,0.00019396,2]
[421681152,1778040640000,-2129.0,0.00019298,2]
[421681156,1778040640000,-1600.0,0.00019467,2]
[421681167,1778040640000,-2000.0,0.0002,2]
[421681137,1778040640000,-500.0,0.00019178,2]
[421681171,1778040640000,-400.0,0.0002,2]
[421681190,1778040640000,-2000.0,0.0002001,2]
[421681188,1778040640000,-2000.0,0.0002001,2]
[421681186,1778040640000,-483.0,0.0002,2]
[421681178,1778040640000,-277.0,0.0002,2]
[421681158,1778040640000,-2000.0,0.00019501,2]
[421681180,1778040640000,-359.0,0.0002,2]
[421681182,1778040640000,-1073.0,0.0002,2]
[421681175,1778040640000,-177.0,0.0002,2]
[421681160,1778040640000,-4609.0,0.00019667,2]
[421681173,1778040640000,-362.0,0.0002,2]
[421681161,1778040640000,-502.13953093,0.00019854,2]
[421681163,1778040640000,-466.0,0.0002,2]
[421681169,1778040640000,-2000.0,0.0002,2]
[421681165,1778040640000,-8052.0,0.0002,2]
[421681334,1778040641000,-3625.0,0.00023536,2]
[421681342,1778040641000,-250.0,0.00023696,2]
[421681332,1778040641000,-156.90090257,0.00023482,2]
[421681330,1778040641000,-788.48,0.00023262,2]
[421681320,1778040641000,-347.0,0.00023,2]
[421681322,1778040641000,-483.0,0.00023,2]
[421681316,1778040641000,-359.0,0.00023,2]
[421681318,1778040641000,-1073.0,0.00023,2]
[421681324,1778040641000,-1747.64701049,0.00023172,2]
[421681314,1778040641000,-277.0,0.00023,2]
[421681303,1778040641000,-788.48,0.00022714,2]
[421681326,1778040641000,-1221.0,0.00023186,2]
[421681328,1778040641000,-200.0,0.00023223,2]
[421681336,1778040641000,-6043.0,0.00023536,2]
[421681371,1778040641000,-325.75,0.0002381,2]
[421681344,1778040641000,-150.294,0.00023696,2]
[421681350,1778040641000,-150.0,0.00023696,2]
[421681340,1778040641000,-160.97,0.00023632,2]
[421681348,1778040641000,-150.0,0.00023696,2]
[421681346,1778040641000,-265.836,0.00023696,2]
[421681352,1778040641000,-150.0,0.00023696,2]
[421681354,1778040641000,-3536.0,0.00023696,2]
[421681365,1778040641000,-175.33,0.00023781,2]
[421681356,1778040641000,-925.0,0.00023696,2]
[421681367,1778040641000,-1248.0,0.00023797,2]
[421681358,1778040641000,-1352.0,0.00023696,2]
[421681312,1778040641000,-177.0,0.00023,2]
[421681338,1778040641000,-788.48,0.00023536,2]
[421681310,1778040641000,-362.0,0.00023,2]
[421681276,1778040641000,-50000.0,0.00022,3]
[421681307,1778040641000,-788.48,0.00022988,2]
[421681254,1778040641000,-156.30737109,0.000219,2]
[421681253,1778040641000,-300.0,0.00021821,7]
[421681255,1778040641000,-5000.0,0.00021918,2]
[421681258,1778040641000,-334.73,0.00021918,2]
[421681257,1778040641000,-200.0,0.00021918,2]
[421681256,1778040641000,-200.0,0.00021918,2]
[421681259,1778040641000,-466.0,0.00022,2]
[421681266,1778040641000,-277.0,0.00022,2]
[421681263,1778040641000,-362.0,0.00022,2]
[421681268,1778040641000,-359.0,0.00022,2]
[421681264,1778040641000,-177.0,0.00022,2]
[421681261,1778040641000,-450.0,0.00022,2]
[421681270,1778040641000,-1073.0,0.00022,2]
[421681308,1778040641000,-466.0,0.00023,2]
[421681272,1778040641000,-347.0,0.00022,2]
[421681278,1778040641000,-162.55277151,0.00022,3]
[421681286,1778040641000,-200.0,0.00022371,2]
[421681294,1778040641000,-1000.0,0.0002247,7]
[421681283,1778040641000,-15233.0097644,0.00022259,2]
[421681290,1778040641000,-788.48,0.0002244,2]
[421681280,1778040641000,-788.48,0.00022166,2]
[421681289,1778040641000,-205.03422771,0.00022407,2]
[421681296,1778040641000,-439.39,0.00022691,2]
[421681284,1778040641000,-1965.0,0.00022353,2]
[421681299,1778040641000,-20858.45,0.00022691,2]
[421681292,1778040641000,-156.90090257,0.00022449,2]
[421681301,1778040641000,-162.55277151,0.000227,3]
[421681305,1778040641000,-3772.22319857,0.00022949,2]
[421681274,1778040641000,-483.0,0.00022,2]
[421681361,1778040641000,-1268.369,0.00023696,2]
[421681402,1778040641000,-156.90090257,0.00024514,2]
[421681362,1778040641000,-150.0,0.00023696,2]
[421681434,1778040641000,-500.0,0.00024657,2]
[421681439,1778040641000,-1000.0,0.00024658,2]
[421681432,1778040641000,-500.0,0.00024657,2]
[421681436,1778040641000,-500.0,0.00024657,2]
[421681437,1778040641000,-150.0,0.00024658,2]
[421681448,1778040641000,-150.0,0.00024658,2]
[421681450,1778040641000,-1071.56024742,0.00024765,5]
[421681461,1778040641000,-1000.71146246,0.00024765,5]
[421681462,1778040641000,-1025.91718476,0.00024765,5]
[421681453,1778040641000,-1033.52174469,0.00024765,5]
[421681467,1778040641000,-1013.2431504,0.00024765,5]
[421681455,1778040641000,-1064.74104057,0.00024765,5]
[421681469,1778040641000,-1056.76750449,0.00024765,5]
[421681441,1778040641000,-356.97,0.00024658,2]
[421681458,1778040641000,-1117.98056509,0.00024765,5]
[421681465,1778040641000,-1034.57693306,0.00024765,5]
[421681475,1778040641000,-1248.48009278,0.00024765,2]
[421681470,1778040641000,-1038.00320294,0.00024765,5]
[421681473,1778040641000,-1267.41962785,0.00024765,5]
[421681477,1778040641000,-200.0,0.00024928,2]
[421681486,1778040641000,-360.72208459,0.00025,2]
[421681488,1778040641000,-1075.89859146,0.00025,2]
[421681492,1778040641000,-501.5843824,0.00025,2]
[421681490,1778040641000,-357.6557652,0.00025,2]
[421681480,1778040641000,-380.99567722,0.00025,2]
[421681484,1778040641000,-291.52367984,0.00025,2]
[421681478,1778040641000,-479.0,0.00025,2]
[421681369,1778040641000,-200.0,0.00023808,2]
[421681457,1778040641000,-1114.3916643,0.00024765,5]
[421681430,1778040641000,-500.0,0.00024657,2]
[421681482,1778040641000,-185.28566167,0.00025,2]
[421681426,1778040641000,-500.0,0.00024657,2]
[421681376,1778040641000,-362.0,0.00024,2]
[421681373,1778040641000,-466.0,0.00024,2]
[421681375,1778040641000,-500.0,0.00024,2]
[421681380,1778040641000,-277.0,0.00024,2]
[421681382,1778040641000,-359.0,0.00024,2]
[421681384,1778040641000,-200.0,0.00024,10]
[421681378,1778040641000,-177.0,0.00024,2]
[421681389,1778040641000,-483.0,0.00024,2]
[421681428,1778040641000,-500.0,0.00024657,2]
[421681387,1778040641000,-347.0,0.00024,2]
[421681391,1778040641000,-200.0,0.00024075,2]
[421681393,1778040641000,-300.0,0.000241,10]
[421681385,1778040641000,-1073.0,0.00024,2]
[421681395,1778040641000,-1965.0,0.00024324,2]
[421681397,1778040641000,-15233.0097644,0.00024448,2]
[421681398,1778040641000,-500.0,0.00024454,2]
[421681425,1778040641000,-500.0,0.00024657,2]
[421681400,1778040641000,-500.0,0.00024454,2]
[421681423,1778040641000,-500.0,0.00024657,2]
[421681412,1778040641000,-500.0,0.00024657,2]
[421681419,1778040641000,-500.0,0.00024657,2]
[421681410,1778040641000,-500.0,0.00024657,2]
[421681421,1778040641000,-500.0,0.00024657,2]